[Event "XXXIX Benasque Open 2019"]
[Site "Benasque"]
[Date "2019.07.09"]
[Round "6.10"]
[White "Plazuelo Pascual, Juan"]
[Black "Martinez Alcantara, Jose Eduardo"]
[Result "0-1"]
[ECO "A80"]
[WhiteElo "2403"]
[BlackElo "2601"]
[Annotator "RC"]
[PlyCount "222"]
[EventDate "2019.07.04"]
[EventType "swiss"]
[EventCountry "ESP"]
[SourceTitle "playchess.com"]
[Source "ChessBase"]
[SourceQuality "1"]
[TimeControl "5400+30"]

1. d4 {[%emt 0:00:00]} f5 {[%emt 0:01:13]} 2. Bg5 {[%emt 0:02:14]} Nf6 {[%emt 0:01:38]} 3. Nd2 {[%emt 0:03:44]} d5 {[%emt 0:01:43]} 4. Bxf6 {[%emt 0:00:56]} exf6 {[%emt 0:00:05]} 5. e3 {[%emt 0:01:00]} Be6 {[%emt 0:03:36]} 6. Bd3 {[%emt 0:03:49]} Nc6 {[%emt 0:06:12]} 7. c3 {[%emt 0:02:30]} Bd6 {[%emt 0:03:26]} 8. Ne2 {[%emt 0:03:16]} Qd7 {[%emt 0:01:50]} 9. Qc2 {[%emt 0:09:28]} g6 {[%emt 0:02:49]} 10. h4 {[%emt 0:01:40]} a6 {[%emt 0:04:35]} 11. a3 {[%emt 0:08:30]} Ne7 {[%emt 0:03:56]} 12. c4 {[%emt 0:06:06]} c6 {[%emt 0:00:23]} 13. O-O-O {[%emt 0:03:12]} b5 {[%emt 0:04:42]} 14. c5 {[%emt 0:00:28]} Bc7 {[%emt 0:00:14]} 15. b3 {[%emt 0:03:26]} h5 {[%emt 0:01:57]} 16. g3 {[%emt 0:04:27]} Ng8 {[%emt 0:00:32]} 17. Nf4 {[%emt 0:00:55]} Bf7 {[%emt 0:00:13]} 18. Rde1 {[%emt 0:08:27]} Nh6 {[%emt 0:02:18]} 19. Kb2 {[%emt 0:00:14]} Kf8 {[%emt 0:01:57]} 20. Re2 {[%emt 0:02:48]} Re8 {[%emt 0:00:27]} 21. Nf3 {[%emt 0:00:50]} Ng4 {[%emt 0:02:41]} 22. Ree1 {[%emt 0:02:56]} Ba5 {[%emt 0:01:40]} 23. Ref1 {[%emt 0:01:47]} Kg7 {[%emt 0:01:31]} 24. Nh2 {[%emt 0:00:35]} Nh6 {[%emt 0:00:37]} 25. Nf3 {[%emt 0:00:08]} Re7 {[%emt 0:00:10]} 26. Rhg1 {[%emt 0:02:21]} Ng4 {[%emt 0:03:04]} 27. Rg2 {[%emt 0:02:15]} Qe8 {[%emt 0:03:04]} 28. Nh2 {[%emt 0:01:13]} Bc7 {[%emt 0:03:48]} 29. Nxg4 {[%emt 0:04:10]} fxg4 {[%emt 0:00:12]} 30. Rgg1 {[%emt 0:00:25]} a5 {[%emt 0:03:49]} 31. Ng2 {[%emt 0:01:11]} Rf8 {[%emt 0:06:26]} 32. Qe2 {[%emt 0:00:40]} Re4 {[%emt 0:05:13]} 33. Re1 {[%emt 0:00:42]} g5 {[%emt 0:00:36]} 34. Rgf1 {[%emt 0:04:37]} Qe6 {[%emt 0:03:44]} 35. Qd1 {[%emt 0:01:03]} Ra8 {[%emt 0:00:51]} 36. Re2 {[%emt 0:00:29]} Bg6 {[%emt 0:01:14]} 37. Rd2 {[%emt 0:00:28]} Qf5 {[%emt 0:01:52]} 38. Re2 {[%emt 0:00:06]} Ra7 {[%emt 0:01:48]} 39. Kc2 {[%emt 0:00:38]} Bd8 {[%emt 0:00:08]} 40. Rg1 {[%emt 0:04:53]} Rae7 {[%emt 0:00:15]} 41. Rd2 {[%emt 0:00:05]} Bc7 {[%emt 0:01:04]} 42. Kc1 {[%emt 0:00:31]} Re8 {[%emt 0:01:13]} 43. Bc2 {[%emt 0:00:31]} Qe6 {[%emt 0:00:53]} 44. Bd3 {[%emt 0:00:15]} Qg8 {[%emt 0:00:21]} 45. Re1 {[%emt 0:00:30]} Bd8 {[%emt 0:01:13]} 46. Rf1 {[%emt 0:00:21]} Qh7 {[%emt 0:00:20]} 47. Rh1 {[%emt 0:00:30]} Be7 {[%emt 0:00:44]} 48. Kb2 {[%emt 0:00:40]} Bf8 {[%emt 0:00:36]} 49. Kc1 {[%emt 0:00:15]} Kg8 {[%emt 0:00:46]} 50. Bc2 {[%emt 0:00:24]} Qa7 {[%emt 0:01:03]} 51. Kb2 {[%emt 0:01:41]} Bg7 {[%emt 0:06:28]} 52. Ka2 {[%emt 0:00:18]} Qd7 {[%emt 0:00:41]} 53. Bd3 {[%emt 0:01:01]} Qf7 {[%emt 0:01:52]} 54. Rg1 {[%emt 0:00:32]} Bh6 {[%emt 0:00:05]} 55. Bc2 {[%emt 0:00:40]} Bh7 {[%emt 0:01:23]} 56. Rh1 {[%emt 0:00:18]} Kh8 {[%emt 0:03:49]} 57. Kb2 {[%emt 0:00:27]} b4 {[%emt 0:00:34]} 58. a4 {[%emt 0:00:15]} Kg7 {[%emt 0:01:17]} 59. Ka2 {[%emt 0:00:20]} Bg6 {[%emt 0:01:07]} 60. Kb2 {[%emt 0:00:18]} Qe6 {[%emt 0:00:01]} 61. Bd3 {[%emt 0:01:15]} Re7 {[%emt 0:03:05]} 62. Bc2 {[%emt 0:00:37]} Qf5 {[%emt 0:01:44]} 63. Rg1 {[%emt 0:00:21]} Kf7 {[%emt 0:01:17]} 64. Bd3 {[%emt 0:00:12]} Kf8 {[%emt 0:00:48]} 65. Ka2 {[%emt 0:00:45]} Bf7 {[%emt 0:00:17]} 66. Kb2 {[%emt 0:00:20]} Qf3 {[%emt 0:01:23]} 67. Re2 {[%emt 0:02:11]} Bg6 {[%emt 0:00:24]} 68. Rd2 {[%emt 0:00:55]} Bh7 {[%emt 0:00:40]} 69. Ka1 {[%emt 0:00:59]} Kg7 {[%emt 0:01:19]} 70. Qc2 {[%emt 0:00:23]} Re8 {[%emt 0:00:22]} 71. Ne1 {[%emt 0:00:21]} Qf5 {[%emt 0:00:11]} 72. Ng2 {[%emt 0:00:10]} Qd7 {[%emt 0:00:46]} 73. Rh1 {[%emt 0:00:21]} Qf7 {[%emt 0:00:14]} 74. Kb2 {[%emt 0:00:32]} Rh8 {[%emt 0:00:22]} 75. Ka2 {[%emt 0:00:14]} Qe8 {[%emt 0:00:55]} 76. Kb2 {[%emt 0:00:24]} Bg6 {[%emt 0:00:56]} 77. Ka2 {[%emt 0:00:18]} Qf7 {[%emt 0:00:05]} 78. Kb2 {[%emt 0:00:15]} Bh7 {[%emt 0:00:14]} 79. Ka2 {[%emt 0:00:27]} Rhe8 {[%emt 0:00:07]} 80. Kb2 {[%emt 0:00:41]} gxh4 {[%emt 0:00:47]} 81. Rxh4 {[%emt 0:00:39]} Bg6 {[%emt 0:01:12]} 82. Rh1 {[%emt 0:00:07]} Bg5 {[%emt 0:00:41]} 83. Nh4 {[%emt 0:00:39]} Bh7 {[%emt 0:00:04]} 84. Ng2 {[%emt 0:00:02]} Rh8 {[%emt 0:00:29]} 85. Qd1 {[%emt 0:00:31]} Ree8 {[%emt 0:01:09]} 86. Bxh7 {[%emt 0:00:39]} Rxh7 {[%emt 0:00:01]} 87. Qc2 {[%emt 0:00:26]} Qg6 {[%emt 0:00:13]} 88. Qxg6+ {[%emt 0:00:43]} Kxg6 {[%emt 0:00:01]} 89. Kc2 {[%emt 0:00:30]} h4 {[%emt 0:01:12]} 90. gxh4 {[%emt 0:01:08]} Reh8 {[%emt 0:00:13]} 91. Rg1 {[%emt 0:00:29]} Bxh4 {[%emt 0:00:09]} 92. f3 {[%emt 0:00:01]} Bg3 {[%emt 0:01:18]} 93. fxg4 {[%emt 0:02:23]} Re8 {[%emt 0:01:02]} 94. Rf1 {[%emt 0:00:16]} Re4 {[%emt 0:00:16]} 95. Nf4+ {[%emt 0:02:11]} Bxf4 {[%emt 0:00:01]} 96. Rxf4 {[%emt 0:00:08]} Rxe3 {[%emt 0:00:13]} 97. Rdf2 {[%emt 0:00:04]} Re6 {[%emt 0:00:39]} 98. Kd3 {[%emt 0:00:49]} Rh3+ {[%emt 0:00:24]} 99. Kc2 {[%emt 0:00:01]} Rc3+ {[%emt 0:00:31]} 100. Kb2 {[%emt 0:00:25]} Rg3 {[%emt 0:00:01]} 101. Kc2 {[%emt 0:00:05]} Rc3+ {[%emt 0:00:11]} 102. Kb2 {[%emt 0:00:01]} Kg7 {[%emt 0:00:27]} 103. Rf5 {[%emt 0:00:49]} Rg3 {[%emt 0:00:48]} 104. R5f4 {[%emt 0:00:11]} Ree3 {[%emt 0:00:50]} 105. Rxf6 {[%emt 0:00:11]} Rxb3+ {[%emt 0:00:01]} 106. Kc2 {[%emt 0:03:11]} Rgc3+ {[%emt 0:00:02]} 107. Kd1 {[%emt 0:00:21]} Rb1+ {[%emt 0:00:32]} 108. Kd2 {[%emt 0:00:06]} Rb2+ {[%emt 0:00:07]} 109. Kd1 {[%emt 0:00:52]} Rd3+ {[%emt 0:00:19]} 110. Kc1 {[%emt 0:01:34]} Rxf2 {[%emt 0:00:03]} 111. Rxf2 {[%emt 0:00:02]} Rxd4 {[%emt 0:00:03]} 0-1

[Event "XXXIX Benasque Open 2019"]
[Site "Benasque"]
[Date "2019.07.10"]
[Round "7.5"]
[White "Deac, Bogdan-Daniel"]
[Black "Gordon, Stephen J"]
[Result "1-0"]
[ECO "B48"]
[WhiteElo "2621"]
[BlackElo "2516"]
[Annotator "RC"]
[PlyCount "101"]
[EventDate "2019.07.04"]
[EventType "swiss"]
[EventCountry "ESP"]
[SourceTitle "playchess.com"]
[Source "ChessBase"]
[SourceQuality "1"]
[TimeControl "5400+30"]

1. e4 {[%emt 0:00:00]} c5 {[%emt 0:03:54]} 2. Nc3 {[%emt 0:00:00]} Nc6 {[%emt 0:02:13]} 3. Nf3 {[%emt 0:00:00]} e6 {[%emt 0:00:13]} 4. d4 {[%emt 0:00:00]} cxd4 {[%emt 0:00:06]} 5. Nxd4 {[%emt 0:00:00]} Qc7 {[%emt 0:00:05]} 6. Be3 {[%emt 0:00:06]} a6 {[%emt 0:00:37]} 7. Qf3 {[%emt 0:00:06]} Nf6 {[%emt 0:01:21]} 8. O-O-O {[%emt 0:00:04]} Ne5 {[%emt 0:00:43]} 9. Qg3 {[%emt 0:00:10]} b5 {[%emt 0:00:36]} 10. a3 {[%emt 0:00:25]} Bb7 {[%emt 0:00:26]} 11. Bxb5 {[%emt 0:00:10]} Rc8 {[%emt 0:00:41]} 12. Ba4 {[%emt 0:00:10]} Nxe4 {[%emt 0:00:43]} 13. Nxe4 {[%emt 0:00:07]} Bxe4 {[%emt 0:00:09]} 14. Bf4 {[%emt 0:00:03]} Qa5 {[%emt 0:00:43]} 15. Bxe5 {[%emt 0:00:08]} Qxa4 {[%emt 0:00:11]} 16. Rd2 {[%emt 0:00:05]} h5 {[%emt 0:05:43]} 17. Re1 {[%emt 0:00:09]} Bg6 {[%emt 0:02:52]} 18. Bd6 {[%emt 0:02:40]} Qc4 {[%emt 0:16:00]} 19. b3 {[%emt 0:06:21]} Bxd6 {[%emt 0:03:36]} 20. Qxd6 {[%emt 0:00:19]} Qc7 {[%emt 0:02:06]} 21. Qxc7 {[%emt 0:08:06]} Rxc7 {[%emt 0:00:05]} 22. f4 {[%emt 0:00:05]} Kd8 {[%emt 0:13:13]} 23. Re5 {[%emt 0:02:05]} Kc8 {[%emt 0:04:53]} 24. Ra5 {[%emt 0:11:11]} Kb7 {[%emt 0:01:16]} 25. f5 {[%emt 0:00:05]} exf5 {[%emt 0:06:37]} 26. Nxf5 {[%emt 0:00:10]} Bxf5 {[%emt 0:00:42]} 27. Rxf5 {[%emt 0:00:08]} f6 {[%emt 0:00:11]} 28. Rfd5 {[%emt 0:09:58]} Kc8 {[%emt 0:01:49]} 29. h4 {[%emt 0:00:22]} Rh6 {[%emt 0:04:14]} 30. Kb2 {[%emt 0:04:40]} g5 {[%emt 0:11:20]} 31. Rd6 {[%emt 0:31:12]} Rc6 {[%emt 0:07:21]} 32. Rxd7 {[%emt 0:05:52]} gxh4 {[%emt 0:00:50]} 33. R7d4 {[%emt 0:00:06]} Rg6 {[%emt 0:02:19]} 34. Rxh4 {[%emt 0:02:27]} Rg5 {[%emt 0:00:01]} 35. g3 {[%emt 0:06:39]} Rxg3 {[%emt 0:06:00]} 36. Rxh5 {[%emt 0:00:05]} Rg7 {[%emt 0:00:31]} 37. Rh8+ {[%emt 0:01:30]} Kc7 {[%emt 0:00:47]} 38. Rf8 {[%emt 0:01:50]} Rd7 {[%emt 0:02:28]} 39. Rf2 {[%emt 0:05:58]} Rdd6 {[%emt 0:00:01]} 40. Rf7+ {[%emt 0:00:37]} Kb6 {[%emt 0:00:23]} 41. a4 {[%emt 0:01:03]} a5 {[%emt 0:01:47]} 42. Rf8 {[%emt 0:01:03]} Kb7 {[%emt 0:00:32]} 43. Rh8 {[%emt 0:01:35]} Rd5 {[%emt 0:00:30]} 44. Rh7+ {[%emt 0:03:30]} Kb6 {[%emt 0:00:06]} 45. Rf7 {[%emt 0:00:09]} Rdc5 {[%emt 0:00:24]} 46. Rf8 {[%emt 0:00:50]} Rc3 {[%emt 0:01:08]} 47. Rb8+ {[%emt 0:00:15]} Ka6 {[%emt 0:00:11]} 48. Rb5 {[%emt 0:00:09]} Re3 {[%emt 0:00:39]} 49. Rff5 {[%emt 0:00:08]} Re2 {[%emt 0:00:42]} 50. Rxa5+ {[%emt 0:00:12]} Kb6 {[%emt 0:00:02]} 51. Rab5+ {[%emt 0:00:11]} 1-0

[Event "XXXIX Benasque Open 2019"]
[Site "Benasque"]
[Date "2019.07.10"]
[Round "7.6"]
[White "Martinez Alcantara, Jose Eduardo"]
[Black "Ubilava, Elizbar"]
[Result "1-0"]
[ECO "C77"]
[WhiteElo "2601"]
[BlackElo "2481"]
[Annotator "RC"]
[PlyCount "125"]
[EventDate "2019.07.04"]
[EventType "swiss"]
[EventCountry "ESP"]
[SourceTitle "playchess.com"]
[Source "ChessBase"]
[SourceQuality "1"]
[TimeControl "5400+30"]

1. e4 {[%emt 0:00:00]} e5 {[%emt 0:00:00]} 2. Nf3 {[%emt 0:00:00]} Nc6 {[%emt 0:00:00]} 3. Bb5 {[%emt 0:00:00]} a6 {[%emt 0:00:09]} 4. Ba4 {[%emt 0:00:00]} Nf6 {[%emt 0:00:11]} 5. d3 {[%emt 0:00:49]} d6 {[%emt 0:03:51]} 6. c3 {[%emt 0:00:28]} g6 {[%emt 0:00:41]} 7. O-O {[%emt 0:01:01]} Bg7 {[%emt 0:00:28]} 8. h3 {[%emt 0:00:37]} O-O {[%emt 0:00:22]} 9. Re1 {[%emt 0:00:03]} b5 {[%emt 0:02:00]} 10. Bc2 {[%emt 0:02:49]} Bb7 {[%emt 0:07:55]} 11. a4 {[%emt 0:01:40]} Nb8 {[%emt 0:06:23]} 12. Na3 {[%emt 0:11:54]} Nbd7 {[%emt 0:00:21]} 13. Bg5 {[%emt 0:01:01]} c6 {[%emt 0:01:51]} 14. Qd2 {[%emt 0:01:23]} Nc5 {[%emt 0:13:25]} 15. d4 {[%emt 0:06:26]} Ne6 {[%emt 0:02:11]} 16. Bh6 {[%emt 0:01:45]} Qc7 {[%emt 0:01:51]} 17. Bb3 {[%emt 0:02:51]} Rfe8 {[%emt 0:00:13]} 18. Bxe6 {[%emt 0:05:43]} Rxe6 {[%emt 0:00:38]} 19. Bxg7 {[%emt 0:00:06]} Kxg7 {[%emt 0:00:06]} 20. dxe5 {[%emt 0:00:04]} dxe5 {[%emt 0:00:28]} 21. Qe3 {[%emt 0:09:21]} Nd7 {[%emt 0:04:53]} 22. Red1 {[%emt 0:02:28]} Nb6 {[%emt 0:05:15]} 23. b3 {[%emt 0:00:03]} bxa4 {[%emt 0:08:10]} 24. bxa4 {[%emt 0:01:51]} a5 {[%emt 0:00:13]} 25. Rab1 {[%emt 0:03:59]} c5 {[%emt 0:06:17]} 26. Nb5 {[%emt 0:05:09]} Qe7 {[%emt 0:01:51]} 27. Ra1 {[%emt 0:08:07]} Bc6 {[%emt 0:01:46]} 28. Rdb1 {[%emt 0:01:09]} Rb8 {[%emt 0:05:02]} 29. Nd2 {[%emt 0:05:08]} c4 {[%emt 0:01:19]} 30. Na3 {[%emt 0:01:36]} Bxa4 {[%emt 0:01:20]} 31. Rxb6 {[%emt 0:01:03]} Rbxb6 {[%emt 0:03:40]} 32. Naxc4 {[%emt 0:00:12]} Rb5 {[%emt 0:00:40]} 33. Rxa4 {[%emt 0:00:14]} Qc7 {[%emt 0:00:37]} 34. Qd3 {[%emt 0:01:06]} Rc6 {[%emt 0:08:14]} 35. Ne3 {[%emt 0:01:59]} Rcc5 {[%emt 0:01:25]} 36. Ra3 {[%emt 0:01:59]} Rb7 {[%emt 0:02:24]} 37. Ndc4 {[%emt 0:01:11]} Ra7 {[%emt 0:02:03]} 38. Nd6 {[%emt 0:04:02]} Qd7 {[%emt 0:03:21]} 39. c4 {[%emt 0:00:29]} Rc6 {[%emt 0:01:04]} 40. Nb5 {[%emt 0:01:00]} Qxd3 {[%emt 0:00:26]} 41. Rxd3 {[%emt 0:00:01]} Ra8 {[%emt 0:01:33]} 42. Kf1 {[%emt 0:00:04]} Kf8 {[%emt 0:01:52]} 43. Rc3 {[%emt 0:01:25]} Ke7 {[%emt 0:01:59]} 44. Nd5+ {[%emt 0:00:17]} Kf8 {[%emt 0:00:22]} 45. Ke2 {[%emt 0:00:14]} f5 {[%emt 0:00:16]} 46. Kd3 {[%emt 0:00:04]} Kf7 {[%emt 0:00:10]} 47. f3 {[%emt 0:00:57]} Kg7 {[%emt 0:01:03]} 48. c5 {[%emt 0:04:52]} Rd8 {[%emt 0:02:12]} 49. Kc4 {[%emt 0:01:07]} Kf8 {[%emt 0:01:13]} 50. Nbc7 {[%emt 0:00:33]} Rb8 {[%emt 0:00:26]} 51. Ra3 {[%emt 0:00:29]} Rb1 {[%emt 0:00:30]} 52. Rxa5 {[%emt 0:01:17]} Rc1+ {[%emt 0:00:17]} 53. Kb4 {[%emt 0:00:14]} Rb1+ {[%emt 0:00:18]} 54. Kc3 {[%emt 0:00:03]} Kf7 {[%emt 0:00:31]} 55. Na6 {[%emt 0:00:33]} Kg7 {[%emt 0:01:02]} 56. Kc4 {[%emt 0:01:09]} fxe4 {[%emt 0:00:35]} 57. fxe4 {[%emt 0:00:09]} Rd1 {[%emt 0:00:30]} 58. Kb5 {[%emt 0:00:43]} Rc8 {[%emt 0:00:12]} 59. c6 {[%emt 0:02:16]} Rb1+ {[%emt 0:00:50]} 60. Nab4 {[%emt 0:00:17]} Re1 {[%emt 0:00:16]} 61. Nb6 {[%emt 0:01:28]} Re8 {[%emt 0:00:30]} 62. c7 {[%emt 0:00:16]} Rc1 {[%emt 0:00:36]} 63. Ra8 {[%emt 0:00:24]} 1-0

[Event "XXXIX Benasque Open 2019"]
[Site "Benasque"]
[Date "2019.07.10"]
[Round "7.8"]
[White "Akash Pc, Iyer"]
[Black "Markus, Robert"]
[Result "1/2-1/2"]
[ECO "A55"]
[WhiteElo "2441"]
[BlackElo "2595"]
[Annotator "ChessBase"]
[PlyCount "90"]
[EventDate "2019.07.04"]
[EventType "swiss"]
[EventCountry "ESP"]
[SourceTitle "playchess.com"]
[Source "ChessBase"]
[SourceQuality "1"]
[TimeControl "5400+30"]

1. d4 {[%emt 0:00:00]} Nf6 {[%emt 0:00:02]} 2. c4 {[%emt 0:00:00]} d6 {[%emt 0:00:16]} 3. Nf3 {[%emt 0:00:03]} Nbd7 {[%emt 0:00:19]} 4. Nc3 {[%emt 0:00:21]} e5 {[%emt 0:00:11]} 5. e4 {[%emt 0:00:28]} g6 {[%emt 0:00:07]} 6. d5 {[%emt 0:01:15]} c5 {[%emt 0:05:32]} 7. Be3 {[%emt 0:00:45]} Ng4 {[%emt 0:02:32]} 8. Bg5 {[%emt 0:00:18]} f6 {[%emt 0:00:45]} 9. Bd2 {[%emt 0:02:51]} Nh6 {[%emt 0:02:32]} 10. h4 {[%emt 0:05:31]} Nf7 {[%emt 0:06:10]} 11. h5 {[%emt 0:01:51]} Be7 {[%emt 0:00:11]} 12. Qa4 {[%emt 0:07:04]} a6 {[%emt 0:13:27]} 13. Be2 {[%emt 0:06:45]} Kf8 {[%emt 0:06:30]} 14. Nh4 {[%emt 0:09:00]} Kg7 {[%emt 0:03:19]} 15. g3 {[%emt 0:01:18]} b5 {[%emt 0:07:25]} 16. cxb5 {[%emt 0:01:11]} Nb6 {[%emt 0:00:04]} 17. Qd1 {[%emt 0:00:30]} axb5 {[%emt 0:06:47]} 18. Bxb5 {[%emt 0:00:47]} Bd7 {[%emt 0:00:04]} 19. Qe2 {[%emt 0:03:37]} Bxb5 {[%emt 0:03:16]} 20. Qxb5 {[%emt 0:00:19]} Rb8 {[%emt 0:02:59]} 21. Qe2 {[%emt 0:01:02]} Qd7 {[%emt 0:00:05]} 22. b3 {[%emt 0:01:49]} f5 {[%emt 0:03:47]} 23. h6+ {[%emt 0:01:58]} Kf8 {[%emt 0:00:34]} 24. f3 {[%emt 0:03:53]} f4 {[%emt 0:03:47]} 25. Ng2 {[%emt 0:04:44]} g5 {[%emt 0:05:03]} 26. g4 {[%emt 0:00:35]} Bd8 {[%emt 0:04:41]} 27. Kf2 {[%emt 0:01:32]} Nc8 {[%emt 0:01:42]} 28. Na4 {[%emt 0:02:44]} Qa7 {[%emt 0:02:01]} 29. Ne1 {[%emt 0:06:32]} Ba5 {[%emt 0:04:15]} 30. Kg2 {[%emt 0:04:55]} Bxd2 {[%emt 0:04:03]} 31. Qxd2 {[%emt 0:00:07]} Ne7 {[%emt 0:02:48]} 32. Rc1 {[%emt 0:02:51]} Ng6 {[%emt 0:01:48]} 33. Rc4 {[%emt 0:00:10]} Nh4+ {[%emt 0:00:30]} 34. Kf2 {[%emt 0:00:06]} Nxh6 {[%emt 0:00:40]} 35. Ng2 {[%emt 0:00:12]} Nxg2 {[%emt 0:00:43]} 36. Kxg2 {[%emt 0:00:09]} Nf7 {[%emt 0:00:05]} 37. Nc3 {[%emt 0:01:24]} Kg7 {[%emt 0:00:47]} 38. Ra4 {[%emt 0:00:24]} Qb7 {[%emt 0:01:01]} 39. Qd3 {[%emt 0:02:01]} Ra8 {[%emt 0:02:00]} 40. Qc4 {[%emt 0:00:55]} Rxa4 {[%emt 0:00:35]} 41. Nxa4 {[%emt 0:00:06]} Qa7 {[%emt 0:00:34]} 42. Qe2 {[%emt 0:01:23]} Rb8 {[%emt 0:00:21]} 43. Rc1 {[%emt 0:00:05]} Rh8 {[%emt 0:00:12]} 44. Rh1 {[%emt 0:00:06]} Rb8 {[%emt 0:00:08]} 45. Rc1 {[%emt 0:00:07]} Rh8 {[%emt 0:01:08]} 1/2-1/2

[Event "XXXIX Benasque Open 2019"]
[Site "Benasque"]
[Date "2019.07.10"]
[Round "7.9"]
[White "Forcen Esteban, Daniel"]
[Black "Raja Harshit"]
[Result "1-0"]
[ECO "A15"]
[WhiteElo "2566"]
[BlackElo "2434"]
[Annotator "ChessBase"]
[PlyCount "51"]
[EventDate "2019.07.04"]
[EventType "swiss"]
[EventCountry "ESP"]
[SourceTitle "playchess.com"]
[Source "ChessBase"]
[SourceQuality "1"]
[TimeControl "5400+30"]

1. c4 {[%emt 0:00:55]} Nf6 {[%emt 0:00:00]} 2. Nf3 {[%emt 0:00:37]} e6 3. b3 {[%emt 0:00:38]} d5 {[%emt 0:01:15]} 4. Bb2 {[%emt 0:00:23]} Be7 {[%emt 0:00:47]} 5. e3 {[%emt 0:00:08]} O-O {[%emt 0:00:56]} 6. Nc3 {[%emt 0:00:31]} c5 {[%emt 0:04:23]} 7. cxd5 {[%emt 0:00:30]} exd5 {[%emt 0:07:02]} 8. d4 {[%emt 0:01:43]} b6 {[%emt 0:01:45]} 9. Be2 {[%emt 0:00:46]} Bb7 {[%emt 0:04:37]} 10. O-O {[%emt 0:00:46]} Nbd7 {[%emt 0:03:41]} 11. Rc1 {[%emt 0:02:39]} Rc8 {[%emt 0:01:37]} 12. Rc2 {[%emt 0:26:52]} a6 {[%emt 0:07:51]} 13. dxc5 {[%emt 0:04:11]} bxc5 {[%emt 0:06:07]} 14. Na4 {[%emt 0:11:12]} Nb6 {[%emt 0:12:18]} 15. Bxf6 {[%emt 0:01:13]} gxf6 {[%emt 0:00:44]} 16. Nxb6 {[%emt 0:01:24]} Qxb6 {[%emt 0:00:04]} 17. Nh4 {[%emt 0:02:55]} f5 {[%emt 0:05:37]} 18. Nxf5 {[%emt 0:00:29]} Qf6 {[%emt 0:00:04]} 19. Bd3 {[%emt 0:09:13]} Rfd8 {[%emt 0:03:43]} 20. Qg4+ {[%emt 0:05:10]} Kh8 {[%emt 0:03:13]} 21. Qh3 {[%emt 0:03:19]} c4 {[%emt 0:00:52]} 22. Nxe7 {[%emt 0:06:54]} cxd3 {[%emt 0:00:16]} 23. Rxc8 {[%emt 0:00:03]} Bxc8 {[%emt 0:00:09]} 24. Nxc8 {[%emt 0:00:05]} d2 {[%emt 0:00:07]} 25. Rd1 {[%emt 0:02:55]} Qc3 {[%emt 0:02:27]} 26. Ne7 {[%emt 0:01:56]} 1-0